fUST/lending_fUST_20240601
["ID","MTS","AMOUNT","RATE_DAILY","PERIOD"]
[328329090,1717171833955,-173.95546905,0.00017698,2]
[328329092,1717171833965,-160.042632,0.0001992,2]
[328329094,1717171833974,-3025.15189895,0.00020998,2]
[328329243,1717171838900,-154.95351395,0.00015,2]
[328329245,1717171838910,-7501.01491565,0.00020998,2]
[328329247,1717171838922,-5788.79852587,0.00020999,2]
[328329249,1717171838931,-151.0,0.00021,2]
[328329251,1717171838943,-221.412253,0.00021272,2]
[328329253,1717171838952,-166.666666,0.00021918,2]
[328329255,1717171838962,-154.95351395,0.00023596,2]
[328329257,1717171838971,-685.52145612,0.00023596,2]
[328329259,1717171838981,-155.00155002,0.00023597,2]
[328329261,1717171838990,-5348.2401407,0.00023597,2]
[328329263,1717171838999,-155.47781701,0.00023597,2]
[328329266,1717171839009,-758.41658575,0.00023597,2]
[328329268,1717171839019,-45755.34582383,0.00023597,2]
[328329270,1717171839035,-2471.6472002,0.00023597,2]
[328329273,1717171839047,-1995.47268441,0.00023597,2]
[328329275,1717171839057,-298.32225139,0.00023598,2]
[328329277,1717171839067,-5491.98694655,0.000236,4]
[328329279,1717171839077,-204.8983228,0.00024192,2]
[328329281,1717171839086,-204.8983228,0.00024192,2]
[328329283,1717171839096,-628.8336885,0.00024192,2]
[328329285,1717171839105,-204.8983228,0.00024192,2]
[328329287,1717171839115,-204.8983228,0.00024192,2]
[328329289,1717171839125,-151.0,0.00024459,5]
[328329291,1717171839134,-288.57042218,0.0002463,2]
[328329293,1717171839144,-171.0,0.00024657,2]
[328329295,1717171839154,-500.0,0.00024657,2]
[328329297,1717171839163,-500.0,0.00024657,2]
[328329299,1717171839173,-500.0,0.00024657,2]
[328329301,1717171839182,-500.0,0.00024657,2]
[328329303,1717171839195,-500.0,0.00024657,2]
[328329305,1717171839205,-500.0,0.00024657,2]
[328329307,1717171839215,-221.72226269,0.00024657,2]
[328329309,1717171839225,-500.0,0.00024657,2]
[328329311,1717171839235,-500.0,0.00024657,2]
[328329313,1717171839245,-500.0,0.00024657,2]
[328329315,1717171839254,-500.0,0.00024657,2]
[328329317,1717171839264,-500.0,0.00024657,2]
[328329319,1717171839274,-500.0,0.00024657,2]
[328329321,1717171839284,-272.26246867,0.00024657,2]
[328329323,1717171839294,-500.0,0.00024657,2]
[328329325,1717171839303,-500.0,0.00024657,2]
[328329338,1717171839432,-500.0,0.00024657,2]
[328329340,1717171839452,-26793.5443739,0.00024658,2]
[328329342,1717171839463,-151.0,0.00024669,5]
[328329344,1717171839472,-155.76125289,0.0002477,2]
[328329346,1717171839482,-278.13343495,0.0002477,2]
[328329348,1717171839491,-155.37295977,0.0002477,2]
[328329350,1717171839501,-174.89967454,0.0002477,2]
[328329352,1717171839511,-527.82833493,0.0002477,4]
[328329354,1717171839521,-1900.31793063,0.0002477,2]
[328329356,1717171839533,-226.42308287,0.0002477,2]
[328329358,1717171839542,-216.14114534,0.0002477,2]
[328329360,1717171839551,-221.41831098,0.0002477,2]
[328329362,1717171839561,-2637.75117063,0.0002477,2]
[328329364,1717171839571,-251.05202133,0.0002477,2]
[328329366,1717171839580,-197.00534377,0.00024772,2]
[328329368,1717171839590,-239.04002635,0.00024772,2]
[328329370,1717171839599,-181.62091911,0.00024772,2]
[328329372,1717171839608,-551.06160363,0.00024772,2]
[328329374,1717171839617,-306.43061002,0.00024772,2]
[328329376,1717171839627,-1340.26998009,0.00024772,2]
[328329377,1717171839636,-155.23907199,0.00024772,2]
[328329379,1717171839645,-1089.49237382,0.00024772,2]
[328329381,1717171839655,-261.36166647,0.00024772,2]
[328329383,1717171839665,-1405.61526917,0.00024772,2]
[328329385,1717171839674,-194.4826775,0.00024772,2]
[328329387,1717171839683,-784.74144776,0.00024772,2]
[328329389,1717171839699,-309.76771213,0.00024772,2]
[328329391,1717171839708,-16155.36567278,0.00024772,2]
[328329393,1717171839718,-1352.0716296,0.00024772,2]
[328329395,1717171839727,-1179.58346172,0.00024772,2]
[328329397,1717171839737,-2678.29668145,0.00024772,2]
[328329399,1717171839746,-316.38176035,0.00024772,2]
[328329401,1717171839755,-231.05856354,0.00024772,2]
[328329403,1717171839765,-194.86360978,0.00024772,2]
[328329405,1717171839775,-1496.05848101,0.00024772,2]
[328329407,1717171839784,-4947.90067037,0.00024773,2]
[328329410,1717171839794,-2256.73,0.00024876,2]
[328329412,1717171839804,-2256.73,0.00024876,2]
[328329414,1717171839814,-2256.73,0.00024876,2]
[328329416,1717171839823,-2256.73,0.00024876,2]
[328329418,1717171839832,-2256.73,0.00024876,2]
[328329420,1717171839842,-2256.73,0.00024877,2]
[328329421,1717171839851,-2256.73,0.00024877,2]
[328329422,1717171839861,-2256.73,0.00024877,2]
[328329423,1717171839870,-2256.73,0.00024877,2]
[328329424,1717171839879,-2256.73,0.00024877,2]
[328329425,1717171839889,-2256.73,0.00024877,2]
[328329426,1717171839898,-2256.73,0.00024877,2]
[328329427,1717171839908,-2256.73,0.00024877,2]
[328329428,1717171839917,-2256.73,0.00024877,2]
[328329429,1717171839927,-2256.73,0.00024877,2]
[328329430,1717171839939,-2256.73,0.00024877,2]
[328329431,1717171839949,-2256.73,0.00024877,2]
[328329432,1717171839958,-2256.73,0.00024877,2]
[328329433,1717171839968,-2256.73,0.00024877,2]
[328329434,1717171839978,-1786.03460888,0.00024877,2]
[328329603,1717171843081,-470.69539112,0.00024877,2]
[328329606,1717171843091,-2256.73,0.00024877,2]
[328329608,1717171843101,-2256.73,0.00024877,2]
[328329609,1717171843111,-2256.73,0.00024877,2]
[328329610,1717171843120,-895.0230933,0.00024877,2]
[328329611,1717171843133,-302.0,0.00024877,2]
[328329612,1717171843145,-1059.72939413,0.00024877,2]
[328329613,1717171843155,-169.83643329,0.00024878,7]
[328329615,1717171843165,-4767.47915146,0.00024878,2]
[328329732,1717171852455,-1006.89506711,0.00024868,3]
[328329739,1717171852533,-669.0,0.00024868,3]
[328329741,1717171852544,-1238.73584461,0.00024868,3]
[328329743,1717171852555,-261.97803576,0.00024868,3]
[328329745,1717171852567,-867.19,0.00024868,3]
[328329747,1717171852681,-313.56105252,0.00024868,3]
[328329748,1717171852692,-719.56687811,0.00024877,2]
[328329751,1717171920374,154.95351395,9.999e-05,2]
[328329752,1717171927479,154.95351395,9.999e-05,2]
[328329753,1717171973266,16171.09228359,9.999e-05,2]
[328329754,1717171989465,372.07,9.999e-05,33]
[328329755,1717171991098,5924.12473115,9.999e-05,2]
[328329758,1717172302103,150.93962415,0.00023236,30]
[328329759,1717172302176,150.93962415,0.00022771,120]
[328329762,1717172606102,150.96980604,0.00023478,30]
[328329763,1717172606195,150.96980604,0.00023008,120]
[328329827,1717173032688,-189.90586124,0.00017597,2]
[328329829,1717173032697,-292.07469675,0.00018656,2]
[328329831,1717173032707,-1137.98739382,0.00018657,2]
[328329833,1717173032716,-150.0,0.000189,2]
[328329834,1717173032726,-199.0116799,0.00019644,2]
[328329835,1717173032735,-453.8603806,0.0002033,2]
[328329836,1717173032744,-191.032698,0.00020617,2]
[328329837,1717173032753,-393.21358975,0.00021087,2]
[328329839,1717173032762,-164.145423,0.00021088,2]
[328329841,1717173032771,-166.666666,0.00021918,2]
[328329843,1717173032780,-573.79341008,0.0002195,2]
[328329845,1717173032789,-22923.53638514,0.00021998,2]
[328329847,1717173032798,-500.0,0.00021999,2]
[328329849,1717173032807,-275.62264529,0.00021999,2]
[328329851,1717173032817,-207.09824855,0.00021999,2]
[328329853,1717173032827,-500.0,0.00021999,2]
[328329855,1717173032840,-179.36922373,0.00021999,2]
[328329857,1717173032849,-531.01101444,0.00021999,2]
[328329859,1717173032858,-500.0,0.00021999,2]
[328329861,1717173032869,-500.0,0.00021999,2]
[328329863,1717173032878,-500.0,0.00021999,2]
[328329865,1717173032889,-500.0,0.00021999,2]
[328329867,1717173032900,-500.0,0.00021999,2]
[328329868,1717173032911,-500.0,0.00021999,2]
[328329870,1717173032920,-610.7730657,0.00021999,2]
[328329872,1717173032928,-560.7510224,0.00021999,2]
[328329874,1717173032939,-378.17880433,0.00021999,2]
[328329876,1717173032948,-500.0,0.00021999,2]
[328329878,1717173032956,-500.0,0.00021999,2]
[328329880,1717173032966,-500.0,0.00021999,2]
[328329883,1717173032975,-500.0,0.00021999,2]
[328329885,1717173032984,-500.0,0.00021999,2]
[328329887,1717173032993,-500.0,0.00021999,2]
[328329888,1717173033003,-247.7612344,0.00021999,2]
[328329890,1717173033012,-500.0,0.00021999,2]
[328329892,1717173033021,-500.0,0.00021999,2]
[328329895,1717173033030,-2398.7185778,0.00021999,2]
[328329897,1717173033039,-46806.72425043,0.00022,2]
[328329899,1717173033052,-706.36,0.00022,2]
[328329987,1717173039341,-500.0,0.00021999,2]
[328329988,1717173039351,-211.49700755,0.00021999,2]
[328329989,1717173039363,-288.50299245,0.00021999,2]
[328329990,1717173039372,-500.0,0.00021999,2]
[328329991,1717173039381,-399.23585184,0.00021999,2]
[328329992,1717173039394,-100.76414816,0.00021999,2]
[328329993,1717173039403,-500.0,0.00021999,2]
[328329994,1717173039412,-500.0,0.00021999,2]
[328329995,1717173039422,-500.0,0.00021999,2]
[328329996,1717173039431,-500.0,0.00021999,2]
[328329997,1717173039441,-500.0,0.00021999,2]
[328329998,1717173039450,-309.81183832,0.00021999,2]
[328329999,1717173039459,-500.0,0.00021999,2]
[328330000,1717173039469,-500.0,0.00021999,2]
[328330001,1717173039478,-22531.6161366,0.00022,2]
[328330002,1717173039487,-166.666666,0.00022431,2]
[328330003,1717173039497,-166.666666,0.00022944,2]
[328330004,1717173039507,-281.62125316,0.00023,2]
[328330005,1717173039516,-169.83643329,0.00023008,7]
[328330006,1717173039525,-224.83709056,0.00023008,2]
[328330007,1717173039535,-39356.78091074,0.00023008,7]
[328330008,1717173039547,-46764.3528008,0.00023008,7]
[328330091,1717173044047,-3906.766,0.00023008,7]
[328330368,1717173046856,-324.3803299,0.00023007,2]
[328330370,1717173046867,-34129.98634366,0.00023008,7]
[328330373,1717173046876,-166.666666,0.00023456,2]
[328330376,1717173046886,-561.49167796,0.00023559,2]
[328330378,1717173046895,-154.99328785,0.00023632,2]
[328330380,1717173046908,-921.9413628,0.00023632,2]
[328330382,1717173046918,-573.79341001,0.000238,2]
[328330385,1717173046927,-561.49167796,0.00023965,2]
[328330388,1717173046936,-166.666666,0.00023969,2]
[328330390,1717173046945,-153.0,0.00024081,2]
[328330392,1717173046954,-181.9832228,0.0002411,2]
[328330394,1717173046963,-561.49167796,0.00024372,2]
[328330395,1717173046972,-166.666666,0.00024482,2]
[328330396,1717173046982,-288.57042218,0.00024598,2]
[328330397,1717173046991,-4229.78307947,0.00024622,2]
[328330398,1717173047001,-151.0,0.00024674,5]
[328330399,1717173047010,-561.49167796,0.00024778,2]
[328330400,1717173047019,-527.82833493,0.00024874,4]
[328330401,1717173047028,-158.03352692,0.00024874,2]
[328330402,1717173047038,-155.49385365,0.00024874,2]
[328330403,1717173047047,-411.813918,0.00024875,2]
[328330404,1717173047056,-309.24490857,0.00024876,2]
[328330405,1717173047065,-155.11319832,0.00024876,2]
[328330406,1717173047074,-1980.05193058,0.00024876,2]
[328330407,1717173047083,-193.42974208,0.00024876,2]
[328330408,1717173047092,-32704.60316615,0.00024876,2]
[328330410,1717173047102,-1737.95881073,0.00024876,2]
[328330412,1717173047111,-154.95351395,0.00024876,2]
[328330414,1717173047120,-4458.22064314,0.00024876,2]
[328330416,1717173047129,-154.95351395,0.00024876,2]
[328330418,1717173047139,-1249.93750688,0.00024877,2]
[328330420,1717173047150,-5988.87233714,0.00024877,2]
[328330422,1717173047159,-47460.58931476,0.00024878,2]
[328331638,1717173148052,154.9690062,9.999e-05,2]
[328331640,1717173219732,3378.01944783,9.999e-05,2]
[328331648,1717173233692,337.68274064,9.999e-05,2]
[328331655,1717173440956,160.0,0.00030961,33]
[328331660,1717173719590,758.81052781,9.999e-05,2]
[328331661,1717173895071,836.90882909,9.999e-05,2]
[328331667,1717173983715,216.01852232,9.999e-05,2]
[328331669,1717174157831,5646.06451604,9.999e-05,2]
[328331704,1717174232057,-9632.91416239,0.00016259,2]
[328331714,1717174232149,-5000.0,0.00016259,2]
[328331716,1717174232182,-5000.0,0.00016259,2]
[328331718,1717174232192,-717.8620449,0.00017497,2]
[328331720,1717174232201,-150.0,0.000189,2]
[328331722,1717174232214,-248.590097,0.00020727,2]
[328331724,1717174232223,-162.215147,0.00020857,2]
[328331726,1717174232233,-825.06991444,0.0002144,2]
[328331728,1717174232244,-3000.0,0.000215,2]
[328331729,1717174232255,-3000.0,0.0002151,2]
[328331731,1717174232264,-3000.0,0.0002152,2]
[328331733,1717174232273,-3000.0,0.0002153,2]
[328331735,1717174232282,-3000.0,0.0002154,2]
[328331736,1717174232292,-499.32038072,0.0002155,2]
[328331751,1717174237964,-648.06323982,0.0002155,2]
[328331752,1717174237978,-555.43540268,0.0002155,2]
[328331768,1717174240856,154.98450155,9.999e-05,2]
[328331769,1717174241274,-4108.51856678,0.0002155,2]
[328331770,1717174241284,-166.666666,0.00021918,2]
[328331771,1717174241295,-840.18148543,0.00021997,2]
[328331772,1717174241304,-179.11240261,0.00021997,2]
[328331773,1717174241315,-2033.20251904,0.00021997,2]
[328331774,1717174241324,-1980.05193058,0.00021997,2]
[328331775,1717174241333,-1000.0,0.00021998,2]
[328331776,1717174241342,-166.666666,0.00022431,2]
[328331777,1717174241352,-166.666666,0.00022944,2]
[328331778,1717174241361,-599.79,0.00022996,3]
[328331779,1717174241370,-599.83,0.00022996,3]
[328331780,1717174241380,-500.0,0.00022998,2]
[328331781,1717174241389,-520.90101464,0.00022998,2]
[328331782,1717174241398,-194.0753606,0.00023,2]
[328331783,1717174241408,-757.72716805,0.00023003,2]
[328331784,1717174241417,-1044.69294597,0.00023003,2]
[328331785,1717174241426,-253.15177593,0.00023003,2]
[328331786,1717174241435,-174.49873306,0.00023003,2]
[328331787,1717174241445,-194.67210298,0.00023003,2]
[328331788,1717174241455,-921.85323911,0.00023004,2]
[328331789,1717174241464,-1702.16977536,0.00023004,2]
[328331790,1717174241476,-10718.17109384,0.00023004,2]
[328331791,1717174241485,-359.38593117,0.00023005,2]
[328331792,1717174241494,-500.0,0.00023005,2]
[328331793,1717174241503,-500.0,0.00023005,2]
[328331794,1717174241513,-500.0,0.00023005,2]
[328331795,1717174241522,-500.0,0.00023005,2]
[328331796,1717174241531,-500.0,0.00023005,2]
[328331797,1717174241540,-500.0,0.00023005,2]
[328331798,1717174241549,-500.0,0.00023005,2]
[328331799,1717174241559,-200.0,0.00023005,2]
[328331800,1717174241568,-500.0,0.00023005,2]
[328331801,1717174241577,-500.0,0.00023005,2]
[328331802,1717174241586,-500.0,0.00023005,2]
[328331803,1717174241596,-500.0,0.00023005,2]
[328331804,1717174241605,-500.0,0.00023005,2]
[328331805,1717174241615,-500.0,0.00023005,2]
[328331806,1717174241625,-414.65388681,0.00023005,2]
[328331807,1717174241635,-500.0,0.00023005,2]
[328331808,1717174241646,-500.0,0.00023005,2]
[328331809,1717174241655,-216.46383941,0.00023005,2]
[328331810,1717174241667,-444.41766215,0.00023005,2]
[328331811,1717174241678,-500.0,0.00023005,2]
[328331812,1717174241689,-500.0,0.00023005,2]
[328331813,1717174241698,-500.0,0.00023005,2]
[328331814,1717174241804,-500.0,0.00023005,2]
[328331815,1717174241818,-500.0,0.00023005,2]
[328331816,1717174241827,-500.0,0.00023005,2]
[328331817,1717174241837,-500.0,0.00023005,2]
[328331818,1717174241847,-500.0,0.00023005,2]
[328331819,1717174241858,-500.0,0.00023005,2]
[328331820,1717174241867,-500.0,0.00023005,2]
[328331821,1717174241878,-500.0,0.00023005,2]
[328331822,1717174241887,-500.0,0.00023005,2]
[328331823,1717174241898,-381.45061344,0.00023005,2]
[328331824,1717174241907,-449.07426305,0.00023005,2]
[328331825,1717174241916,-500.0,0.00023005,2]
[328331826,1717174241925,-500.0,0.00023005,2]
[328331827,1717174241934,-500.0,0.00023005,2]
[328331828,1717174241944,-500.0,0.00023005,2]
[328331829,1717174241953,-418.60533802,0.00023005,2]
[328331830,1717174241961,-500.0,0.00023005,2]
[328331831,1717174241970,-500.0,0.00023005,2]
[328331832,1717174241979,-500.0,0.00023005,2]
[328331833,1717174241988,-500.0,0.00023005,2]
[328331834,1717174241997,-500.0,0.00023005,2]
[328331835,1717174242007,-500.0,0.00023005,2]
[328331836,1717174242017,-500.0,0.00023005,2]
[328331837,1717174242026,-500.0,0.00023005,2]
[328331838,1717174242036,-500.0,0.00023005,2]
[328331839,1717174242045,-500.0,0.00023005,2]
[328331840,1717174242054,-500.0,0.00023005,2]
[328331841,1717174242063,-500.0,0.00023005,2]
[328331842,1717174242074,-500.0,0.00023005,2]
[328331843,1717174242084,-500.0,0.00023005,2]
[328331844,1717174242093,-500.0,0.00023005,2]
[328331845,1717174242102,-500.0,0.00023005,2]
[328331846,1717174242111,-500.0,0.00023005,2]
[328331847,1717174242120,-6159.47526549,0.00023006,2]
[328331848,1717174242130,-24021.21543002,0.00023006,2]
[328331849,1717174242143,-1373.60129679,0.00023006,2]
[328331850,1717174242154,-20983.81292627,0.00023006,2]
[328331851,1717174242163,-526.16308522,0.00023007,2]
[328331852,1717174242172,-1429.00165313,0.00023007,2]
[328331853,1717174242181,-440.60397762,0.00023007,2]
[328331854,1717174242191,-825.06991442,0.00023363,2]
[328331855,1717174242200,-166.666666,0.00023456,2]
[328331856,1717174242211,-150.98490151,0.000238,7]
[328331857,1717174242220,-166.666666,0.00023969,2]
[328331858,1717174242229,-150.98490151,0.00024285,4]
[328331859,1717174242238,-761.75049726,0.000244,2]
[328331860,1717174242249,-4229.78307947,0.00024405,2]
[328331861,1717174242259,-288.57042218,0.00024417,2]
[328331862,1717174242269,-153.226,0.00024449,2]
[328331863,1717174242278,-151.0,0.0002447,5]
[328331864,1717174242288,-166.666666,0.00024482,2]
[328331865,1717174242298,-5766.06905748,0.000245,2]
[328331867,1717174242309,-40061.34398753,0.000245,2]
[328331882,1717174243014,-785.77,0.00022996,3]
[328331883,1717174243023,-9676.83288742,0.000245,2]
[328331900,1717174263534,8845.9643174,9.999e-05,2]
[328331901,1717174265980,2119.2473278,9.999e-05,2]
[328331911,1717175034268,10000.0,0.00030953,60]
[328331912,1717175046344,572.66480309,9.999e-05,2]
[328331916,1717175308312,9013.0,0.00030953,60]
[328331917,1717175352053,10000.0,0.000275,30]
[328331918,1717175357552,35238.70739947,0.00030953,33]
[328331919,1717175374489,10000.0,0.000275,30]
[328331920,1717175404401,10000.0,0.000275,30]
[328331966,1717175432186,-990.5144312,0.00021339,2]
[328331968,1717175432196,-150.0,0.000215,2]
[328331970,1717175432206,-151.0,0.00023454,5]
[328331972,1717175432215,-151.0,0.00023658,5]
[328331974,1717175432224,-151.0,0.00023861,5]
[328331976,1717175432234,-153.0,0.00024055,2]
[328331977,1717175432243,-153.0,0.00024055,2]
[328331979,1717175432252,-153.0,0.00024055,2]
[328331981,1717175432262,-153.0,0.00024055,2]
[328331983,1717175432271,-151.0,0.00024065,5]
[328331984,1717175432281,-223.70746864,0.00024109,2]
[328331986,1717175432293,-3552.9737493,0.00024109,2]
[328331988,1717175432302,-325.4475907,0.00024152,2]
[328331990,1717175432311,-151.0,0.00024268,5]
[328331992,1717175432320,-288.57042218,0.00024312,2]
[328331994,1717175432329,-697.40248812,0.00024399,2]
[328331996,1717175432339,-761.75049726,0.000244,2]
[328331998,1717175432348,-151.0,0.00024471,5]
[328332000,1717175432357,-251.28055466,0.00024498,2]
[328332002,1717175432367,-285.9710147,0.00024498,2]
[328332013,1717175439022,-7620.8715267,0.00024498,2]
[328332014,1717175439032,-155.00155002,0.00024498,2]
[328332015,1717175439042,-158.79982615,0.00024498,2]
[328332016,1717175439052,-964.32254596,0.00024499,2]
[328332017,1717175439061,-154.02254193,0.00024499,2]
[328332018,1717175439071,-300.0,0.00024499,2]
[328332019,1717175439080,-192.46039845,0.00024499,2]
[328332020,1717175439090,-500.0,0.00024499,2]
[328332021,1717175439099,-391.99452292,0.00024499,2]
[328332022,1717175439109,-377.76454862,0.00024499,2]
[328332023,1717175439121,-514.93915183,0.00024499,2]
[328332024,1717175439132,-500.0,0.00024499,2]
[328332025,1717175439141,-533.32529865,0.00024499,2]
[328332026,1717175439151,-500.0,0.00024499,2]
[328332027,1717175439161,-500.0,0.00024499,2]
[328332028,1717175439170,-500.0,0.00024499,2]
[328332029,1717175439180,-500.0,0.00024499,2]
[328332030,1717175439190,-500.0,0.00024499,2]
[328332031,1717175439199,-361.56371947,0.00024499,2]
[328332032,1717175439212,-138.43628053,0.00024499,2]
[328332033,1717175439222,-495.25787121,0.00024499,2]
[328332034,1717175439234,-4.74212879,0.00024499,2]
[328332035,1717175439244,-399.80720871,0.00024499,2]
[328332058,1717175441984,-100.19279129,0.00024499,2]
[328332059,1717175441993,-500.0,0.00024499,2]
[328332060,1717175442007,-500.0,0.00024499,2]
[328332061,1717175442029,-608.3359161,0.00024499,2]
[328332062,1717175442046,-500.0,0.00024499,2]
[328332063,1717175442064,-500.0,0.00024499,2]
[328332064,1717175442085,-500.0,0.00024499,2]
[328332065,1717175442104,-500.0,0.00024499,2]
[328332066,1717175442123,-500.0,0.00024499,2]
[328332067,1717175442139,-500.0,0.00024499,2]
[328332068,1717175442153,-500.0,0.00024499,2]
[328332069,1717175442171,-500.0,0.00024499,2]
[328332070,1717175442191,-220.68820792,0.00024499,2]
[328332071,1717175442207,-692.62548395,0.000245,2]
[328332074,1717175442848,813.83,0.000275,30]
[328332102,1717175443663,-22093.17794918,0.000245,2]
[328332105,1717175443685,-2445.13019853,0.000245,2]
[328332108,1717175443708,-1293.72255539,0.000245,2]
[328332111,1717175443726,-2256.92096665,0.000245,2]
[328332114,1717175443745,-2127.499985,0.000245,2]
[328332392,1717175446333,-38536.67692887,0.000245,2]
[328332394,1717175446344,-10000.0,0.000245,2]
[328332396,1717175446354,-306.0,0.00024603,2]
[328332399,1717175446364,-153.0,0.00024603,2]
[328332401,1717175446377,-380.0,0.00024658,2]
[328332403,1717175446387,-151.0,0.00024675,5]
[328332405,1717175446397,-285.38835246,0.00024777,2]
[328332407,1717175446409,-285.38835242,0.00024777,2]
[328332409,1717175446419,-285.38835242,0.00024778,2]
[328332411,1717175446430,-285.38835242,0.00024778,2]
[328332413,1717175446440,-1052.86493112,0.00024778,3]
[328332415,1717175446449,-282.0,0.000248,2]
[328332418,1717175446459,-637.0766362,0.00024806,2]
[328332420,1717175446469,-1882.86709703,0.00024876,2]
[328332422,1717175446479,-274.99910967,0.00024876,2]
[328332424,1717175446489,-230.87532501,0.00024876,2]
[328332426,1717175446499,-1497.09071531,0.00024876,2]
[328332428,1717175446509,-155.09280497,0.00024876,2]
[328332430,1717175446519,-1701.25013633,0.00024877,2]
[328332432,1717175446529,-1379.75047091,0.00024877,2]
[328332434,1717175446540,-635.42,0.00024877,2]
[328332436,1717175446550,-635.42,0.00024877,2]
[328332438,1717175446560,-635.42,0.00024877,2]
[328332440,1717175446570,-635.42,0.00024877,2]
[328332442,1717175446580,-635.42,0.00024877,2]
[328332445,1717175446590,-635.42,0.00024877,2]
[328332447,1717175446600,-635.42,0.00024877,2]
[328332449,1717175446613,-635.42,0.00024877,2]
[328332451,1717175446623,-635.42,0.00024877,2]
[328332453,1717175446633,-635.42,0.00024877,2]
[328332455,1717175446643,-635.42,0.00024877,2]
[328332457,1717175446654,-635.42,0.00024877,2]
[328332459,1717175446666,-635.42,0.00024877,2]
[328332461,1717175446676,-635.42,0.00024877,2]
[328332463,1717175446686,-635.42,0.00024877,2]
[328332465,1717175446697,-635.42,0.00024877,2]
[328332467,1717175446709,-635.42,0.00024877,2]
[328332469,1717175446720,-635.42,0.00024877,2]
[328332471,1717175446730,-635.42,0.00024877,2]
[328332473,1717175446739,-635.42,0.00024877,2]
[328332475,1717175446749,-635.42,0.00024877,2]
[328332478,1717175446759,-635.42,0.00024877,2]
[328332480,1717175446769,-635.42,0.00024877,2]
[328332482,1717175446780,-635.6,0.00024877,2]
[328332484,1717175446791,-603260.6592638,0.00024878,2]
[328332991,1717175522903,187.10514674,9.999e-05,2]
[328332992,1717175533870,154.98450155,0.000137,2]
[328332993,1717175740213,9481.47918126,0.00030952,33]
[328332994,1717175781472,4000.0,0.00030952,33]
[328332995,1717175836811,4000.0,0.00030932,33]
[328332996,1717175903422,154.78,0.000275,30]
[328333034,1717176632397,-1137.49756825,0.00018657,2]
[328333035,1717176632406,-3000.0,0.000215,2]
[328333036,1717176632414,-3000.0,0.0002151,2]
[328333037,1717176632422,-1299.30253175,0.0002152,2]
[328333038,1717176632433,-1700.69746825,0.0002152,2]
[328333039,1717176632441,-1424.13748839,0.0002153,2]
[328333040,1717176632452,-1575.86251161,0.0002153,2]
[328333041,1717176632461,-2882.34422926,0.0002154,2]
[328333075,1717176638372,-117.65577074,0.0002154,2]
[328333076,1717176638381,-4228.833614,0.0002155,2]
[328333077,1717176638391,-173.297211,0.00021918,2]
[328333078,1717176638401,-363.0,0.00022,2]
[328333079,1717176638411,-363.0,0.00022192,2]
[328333080,1717176638421,-309.144753,0.00022217,2]
[328333081,1717176638431,-345.0686513,0.00022466,2]
[328333082,1717176638443,-17.9313487,0.00022466,2]
[328333083,1717176638453,-173.297211,0.00022659,2]
[328333084,1717176638462,-363.0,0.0002274,2]
[328333085,1717176638473,-363.0,0.00023014,2]
[328333086,1717176638482,-363.0,0.00023014,2]
[328333087,1717176638492,-173.297211,0.000234,2]
[328333088,1717176638502,-162.215147,0.00023631,2]
[328333089,1717176638512,-306.0,0.00023918,2]
[328333090,1717176638521,-173.297211,0.00024141,2]
[328333092,1717176638531,-367.0,0.00024164,2]
[328333094,1717176638540,-363.0,0.00024164,2]
[328333096,1717176638550,-288.57042218,0.00024399,2]
[328333098,1717176638560,-761.75049726,0.000244,2]
[328333100,1717176638570,-620.85383181,0.00024745,2]
[328333102,1717176638580,-715.83262458,0.00024775,2]
[328333105,1717176638590,-60.68128562,0.00024778,2]
[328333107,1717176638603,-511.62284891,0.00024778,2]